bitfinex/quotes_ETHUSD_20260214
["timestamp","ask_amount","ask_price","bid_price","bid_amount"]
[1771085698910,0.0011,2080.3,2079.6,0.21775739]
[1771085699223,1.20286626,2080.3,2079.6,0.21775739]
[1771085699723,1.20286626,2080.3,2079.3,4.033031]
[1771085699926,1.80934304,2080.3,2079.4,2.142]
[1771085700299,1.80934304,2080.3,2079.5,2.615]
[1771085700525,1.80934304,2080.3,2079.4,4.80886583]
[1771085700826,0.0011,2080.3,2079.5,2.82663724]
[1771085701029,1.80814244,2080.5,2079.6,0.208574]
[1771085701824,0.60647678,2080.5,2079.6,0.208574]
[1771085702234,1.8081123,2080.5,2079.6,0.208574]
[1771085702731,1.8081123,2080.5,2079.6,1.4107265]
[1771085702732,0.70176088,2080.4,2079.6,1.4107265]
[1771085702942,0.70176088,2080.4,2079.7,2.613]
[1771085703348,0.70176088,2080.4,2079.4,3.8]
[1771085703515,0.70176088,2080.2,2079.4,2.613]
[1771085703928,2.83348225,2080.1,2079.4,2.613]
[1771085704126,0.70176088,2080.0,2079.1,1.20243632]
[1771085704342,0.70176088,2080.0,2079.2,2.613]
[1771085705148,0.70176088,2079.8,2079.2,3.81536043]
[1771085705945,1.90372215,2080.0,2079.2,3.81536043]
[1771085706509,0.70176088,2079.9,2079.2,3.81536043]
[1771085706925,0.70176088,2079.9,2079.1,1.20240266]
[1771085707138,1.20203865,2079.8,2079.1,1.20240266]
[1771085707338,0.70176088,2079.7,2079.2,2.612]
[1771085708052,1.20203865,2079.8,2079.2,2.612]
[1771085708752,0.70176088,2079.7,2079.2,2.612]
[1771085709129,1.90391514,2079.6,2079.2,2.612]
[1771085709950,0.70176088,2079.5,2078.8,5.00257746]
[1771085710127,0.70176088,2079.5,2078.9,2.612]
[1771085710530,0.70176088,2079.5,2078.7,0.001]
[1771085710836,0.70176088,2079.3,2078.7,1.748]
[1771085711037,0.70176088,2079.1,2078.4,1e-08]
[1771085711235,0.70176088,2078.9,2078.0,1.92545351]
[1771085711553,0.70176088,2078.9,2078.1,0.001]
[1771085712652,0.70176088,2078.9,2078.2,1.746]
[1771085712860,0.70176088,2078.9,2078.3,1.6]
[1771085713151,1.90449348,2078.6,2078.3,1.6]
[1771085713356,1.90449348,2078.6,2078.1,1.746]
[1771085713724,1.90449348,2078.6,2078.1,0.001]
[1771085713928,1.90449348,2078.6,2078.1,1.746]
[1771085714129,0.70176088,2078.9,2078.1,2.94901337]
[1771085714330,3.53879684,2078.8,2078.1,2.94901337]
[1771085714532,0.70176088,2078.8,2078.1,2.94901337]
[1771085714731,0.70176088,2078.8,2077.7,4.8130076]
[1771085714931,1.20245517,2079.1,2077.4,2.23653295]
[1771085714932,0.70176088,2078.6,2077.4,2.23653295]
[1771085715154,0.70176088,2078.6,2077.3,1.746]
[1771085715155,0.70176088,2078.4,2077.3,1.746]
[1771085716034,0.70176088,2078.4,2076.8,1.20372702]
[1771085716274,0.70176088,2078.4,2076.9,1.534]
[1771085716643,0.70176088,2078.4,2077.0,1.442]
[1771085716974,0.70176088,2078.4,2077.1,1.358]
[1771085717141,0.70176088,2078.4,2077.2,0.492]
[1771085717142,0.70176088,2078.2,2077.2,0.492]
[1771085717746,0.70176088,2078.2,2077.3,0.492]
[1771085718146,0.70176088,2078.2,2077.4,0.492]
[1771085718946,0.70176088,2078.2,2076.7,0.70485181]
[1771085719227,0.70176088,2078.0,2077.0,0.70485181]
[1771085719432,1.20302199,2078.1,2077.0,0.70485181]
[1771085719661,1.20302199,2078.1,2077.1,2.546]
[1771085719862,1.20279047,2078.5,2077.4,0.70485181]
[1771085720071,3.07719093,2078.6,2077.6,3.40585181]
[1771085720365,3.77895181,2078.6,2077.7,2.609]
[1771085720765,3.77895181,2078.6,2077.6,0.763]
[1771085720766,0.70176088,2078.5,2077.6,0.763]
[1771085721171,0.70176088,2078.5,2077.7,1.20325359]
[1771085721337,3.07718704,2078.6,2077.7,1.20325359]
[1771085722357,3.77894792,2078.6,2077.7,1.20325359]
[1771085722661,0.70176088,2078.5,2077.8,2.611]
[1771085723644,1.20284834,2078.4,2077.8,2.611]
[1771085723843,0.70176088,2078.3,2077.4,1.20442736]
[1771085724174,0.70176088,2078.3,2077.5,2.61]
[1771085724383,0.70176088,2078.3,2077.4,0.001]
[1771085724674,0.70176088,2078.3,2077.5,1.358]
[1771085724975,0.70176088,2078.3,2077.4,0.001]
[1771085725133,0.70176088,2078.3,2077.5,1.989]
[1771085725334,0.70176088,2078.3,2077.4,1.081]
[1771085725738,0.70176088,2078.1,2077.4,0.661]
[1771085725939,0.70176088,2078.1,2077.4,0.001]
[1771085726138,0.70176088,2078.1,2077.2,0.001]
[1771085726939,0.70176088,2078.1,2077.2,0.493]
[1771085727157,0.70176088,2078.1,2076.7,1.20378757]
[1771085727362,0.70176088,2078.1,2076.8,1.437]
[1771085727561,0.70176088,2078.1,2076.7,1.20378757]
[1771085727736,0.70176088,2078.1,2076.8,2.43]
[1771085727737,0.70176088,2077.9,2076.8,2.43]
[1771085728061,0.70176088,2077.9,2076.9,1.655]
[1771085728229,0.70176088,2077.9,2076.5,1.20394895]
[1771085728230,0.70176088,2077.9,2076.8,0.866]
[1771085728434,0.70176088,2077.9,2076.9,0.492]
[1771085728661,1.20307988,2078.0,2076.2,4.81639617]
[1771085728662,0.70176088,2077.7,2076.2,4.81639617]
[1771085729229,0.70176088,2077.7,2076.2,1.20412291]
[1771085729631,0.70176088,2077.5,2076.2,1.20412291]
[1771085730960,0.70176088,2077.5,2076.3,2.263]
[1771085731261,0.70176088,2077.5,2075.5,5.18665407]
[1771085731262,0.70176088,2076.9,2075.5,1.74]
[1771085731462,7.88460568,2077.4,2074.7,0.75852578]
[1771085731463,0.95031858,2076.7,2074.7,0.75852578]
[1771085731653,1.20389097,2076.6,2075.5,1.20452902]
[1771085731842,0.95031858,2076.5,2075.5,1.20452902]
[1771085732043,0.95031858,2076.5,2074.9,4.81942121]
[1771085732044,0.95031858,2076.5,2074.6,0.75412488]
[1771085732248,0.95031858,2076.5,2075.2,0.866]
[1771085732462,0.95031858,2076.5,2074.9,2.692]
[1771085732663,0.95031858,2076.5,2075.3,0.492]
[1771085732864,0.95031858,2076.5,2075.4,0.492]
[1771085733068,0.95031858,2076.5,2075.5,1.358]
[1771085733437,0.95031858,2076.5,2075.5,1.308]
[1771085733636,0.95031858,2076.5,2075.5,0.492]
[1771085733965,0.95031858,2076.3,2075.6,1.358]
[1771085734150,0.95031858,2076.3,2074.9,4.81950302]
[1771085734151,0.95031858,2076.3,2074.9,5.5663533]
[1771085734348,1.20400693,2076.4,2074.9,5.5663533]
[1771085734349,1.20400693,2076.4,2075.2,30.0]
[1771085734566,1.20400693,2076.4,2075.3,0.74685028]
[1771085734765,2.15432551,2076.4,2075.4,2.61]
[1771085735089,0.95031858,2076.3,2075.5,1.523]
[1771085735248,0.95031858,2076.3,2075.6,1.523]
[1771085735946,1.20400693,2076.4,2075.7,1.20441296]
[1771085736473,1.20400693,2076.4,2075.6,2.72743358]
[1771085736767,0.95031858,2076.3,2075.2,4.81874575]
[1771085736966,0.95031858,2076.3,2075.3,1.146]
[1771085737567,1.20400693,2076.4,2075.3,1.146]
[1771085738073,5.76634632,2076.5,2075.4,1.20458706]
[1771085739175,4.81602774,2076.5,2075.4,1.20458706]
[1771085739365,5.76634632,2076.5,2075.5,2.61]
[1771085739542,5.76634632,2076.5,2075.4,1.20458706]
[1771085739543,0.95031858,2076.4,2075.4,1.20458706]
[1771085739743,0.95031858,2076.4,2075.6,1.743]
[1771085740144,1.20406492,2076.3,2075.7,2.61]
[1771085740350,2.1543835,2076.3,2075.7,2.61]
[1771085740559,2.1543835,2076.3,2075.4,1.20452902]
[1771085740765,1.20406492,2076.3,2075.8,1.743]
[1771085740964,4.81587474,2076.5,2075.8,1.743]
[1771085741177,5.68663625,2076.5,2075.8,1.743]
[1771085742047,5.68663625,2076.5,2075.3,4.81934827]
[1771085742048,0.87076151,2076.4,2075.6,1.20443317]
[1771085742250,0.87076151,2076.4,2075.7,1.666]
[1771085742955,0.87076151,2076.4,2075.4,4.81826511]
[1771085743277,0.87076151,2076.4,2075.8,1.741]
[1771085744095,1.20406492,2076.3,2075.8,1.741]
[1771085744383,2.07480335,2076.4,2075.8,2.94535463]
[1771085744852,0.87076151,2076.3,2075.8,1.741]
[1771085745783,0.87076151,2076.3,2075.8,1.74]
[1771085746449,2.07488442,2076.2,2075.8,1.74]
[1771085746678,0.87076151,2076.5,2075.8,1.739]
[1771085746984,2.07471046,2076.6,2075.8,1.739]
[1771085747345,0.87076151,2076.6,2075.8,1.739]
[1771085748357,1.2038757,2076.7,2075.8,1.739]
[1771085748559,1.20377503,2076.8,2075.9,1.20429693]
[1771085749056,2.07453654,2076.8,2075.9,1.20429693]
[1771085750687,1.203687,2077.0,2076.0,0.67849294]
[1771085751378,1.723,2077.6,2076.4,0.6743253]
[1771085751379,0.87076151,2077.6,2076.4,0.6743253]
[1771085751592,0.87076151,2077.6,2076.5,2.604]
[1771085752174,0.0011,2076.9,2076.6,0.776]
[1771085752374,0.87076151,2077.3,2076.6,0.776]
[1771085752574,1.20336943,2077.5,2076.7,1.203833]
[1771085752784,2.07410567,2077.6,2076.7,1.203833]
[1771085753365,0.87076151,2077.6,2076.7,1.203833]
[1771085753696,2.07393922,2077.9,2076.7,1.869892]
[1771085753996,0.87076151,2077.9,2076.8,0.666059]
[1771085754296,1.20306244,2078.1,2076.8,0.666059]
[1771085754593,1.20306244,2078.1,2077.0,0.66192741]
[1771085755097,2.07372737,2078.2,2077.1,1.86140896]
[1771085755298,2.07372737,2078.2,2077.2,0.492]
[1771085755498,1.20287592,2078.4,2077.3,0.867]
[1771085756222,0.28107637,2078.5,2077.6,30.0]
[1771085756367,1.20368759,2078.9,2077.7,0.6537001]
[1771085756572,1.20368759,2078.9,2077.8,1.735]
[1771085756974,0.0011,2078.9,2077.9,1.20313778]
[1771085757378,0.87186151,2078.9,2077.9,1.20313778]
[1771085757577,0.87186151,2078.9,2077.6,1.20331151]
[1771085757909,0.87186151,2078.9,2077.7,1.735]
[1771085759300,1.20261689,2078.8,2077.8,1.20319568]
[1771085759510,1.20261689,2078.8,2077.7,2.93821395]
[1771085760014,1.20261689,2078.8,2077.7,1.735]
[1771085760173,1.20261689,2078.8,2077.7,2.93825002]
[1771085760708,1.20261689,2078.8,2077.7,2.93824541]
[1771085761376,0.0011,2078.9,2077.7,1.20324541]
[1771085761681,0.0011,2078.9,2077.8,2.598]
[1771085762669,0.0011,2078.9,2077.7,1.20324541]
[1771085762870,0.0011,2078.9,2077.8,2.598]
[1771085763600,0.0011,2078.9,2077.6,4.81323404]
[1771085763601,0.0011,2078.9,2077.6,1.731]
[1771085764308,0.0011,2078.9,2076.6,4.81486831]
[1771085764492,0.18795624,2078.9,2077.1,0.866]
[1771085764900,0.18795624,2078.9,2076.8,0.866]
[1771085764901,7.01860568,2078.6,2076.8,0.866]
[1771085765088,0.492,2078.5,2077.0,0.492]
[1771085766107,1.20284834,2078.4,2077.0,0.492]
[1771085766400,1.20284834,2078.4,2077.0,1.69565478]
[1771085766769,1.20284834,2078.4,2076.8,0.866]
[1771085766770,1.20284834,2078.4,2076.3,1.20406492]
[1771085767117,1.20284834,2078.4,2076.0,4.81685611]
[1771085767118,7.01860568,2077.4,2076.2,0.001]
[1771085767402,7.01860568,2077.4,2075.6,0.492]
[1771085767403,1.671,2077.4,2075.6,0.492]
[1771085767606,8.22145402,2078.4,2075.7,30.0]
[1771085767808,0.866,2078.2,2075.9,7.01860568]
[1771085768011,0.1024,2078.1,2076.1,30.0]
[1771085768309,1.20302199,2078.1,2076.2,2.93412291]
[1771085768517,1.20302199,2078.1,2076.2,3.80012291]
[1771085768817,7.01860568,2077.9,2076.3,1.73]
[1771085768989,0.1024,2078.0,2076.3,1.73]
[1771085770104,1.20313778,2077.9,2076.3,2.93405384]
[1771085770309,1.20313778,2077.9,2076.2,1.20410811]
[1771085770516,1.20313778,2077.9,2076.3,1.564]
[1771085770673,0.1024,2077.8,2076.3,1.564]
[1771085770878,0.647,2077.7,2076.2,0.492]
[1771085771820,1.20313778,2077.9,2076.2,0.492]
[1771085772302,4.81255113,2078.0,2076.3,1.20406492]
[1771085773009,4.81255113,2078.0,2076.4,1.359]
[1771085774813,4.81255113,2078.0,2076.5,1.20394895]
[1771085775508,4.81255113,2078.0,2076.5,3.54494895]
[1771085777782,4.81255113,2078.0,2076.5,1.20394895]
[1771085778009,4.81255113,2078.0,2076.5,2.92894895]
[1771085778513,0.1024,2077.9,2076.5,1.725]
[1771085778882,1.20319568,2077.8,2076.5,2.92892627]
[1771085781018,4.81278275,2078.0,2076.5,2.92892627]
[1771085781712,1.20302199,2078.1,2076.5,2.92892627]
[1771085782086,1.20302199,2078.1,2076.6,1.111]
[1771085782287,1.20302199,2078.1,2076.6,1.978]
[1771085782724,1.20302199,2078.1,2076.5,1.20392627]
[1771085782901,1.20302199,2078.1,2076.7,1.90379009]
[1771085786906,1.20302199,2078.1,2076.9,1.20371707]
[1771085787095,1.20302199,2078.1,2076.6,4.81543504]
[1771085787300,1.20302199,2078.1,2076.7,3.79078953]
[1771085789037,1.20302199,2078.1,2076.8,2.586]
[1771085789403,4.81208796,2078.2,2076.9,1.20371707]
[1771085789715,6.4624,2078.1,2076.5,1.20390796]
[1771085790105,6.4624,2078.1,2076.4,3.78996404]
[1771085790424,6.4624,2078.1,2076.4,3.7900006]
[1771085790936,6.4624,2078.1,2076.4,2.586]
[1771085791104,6.4624,2078.1,2076.4,3.78998452]
[1771085791306,0.1024,2077.9,2076.4,3.78998452]
[1771085792618,0.1024,2077.9,2076.4,1.20398452]
[1771085793022,1.20307988,2078.0,2076.4,1.20398452]
[1771085793407,4.81231953,2078.1,2076.3,4.81602774]
[1771085793809,4.81231953,2078.1,2076.4,1.36]
[1771085794229,4.81231953,2078.1,2076.3,4.81602774]
[1771085794436,4.81231953,2078.1,2076.4,1.36]
[1771085794643,0.1024,2078.0,2076.3,0.867]
[1771085794858,0.1024,2077.8,2076.3,1.36]
[1771085795640,1.20325359,2077.7,2076.3,1.36]
[1771085795833,1.20325359,2077.7,2076.1,0.493]
[1771085796137,0.9694,2077.6,2075.8,1.20435494]
[1771085796338,0.9694,2077.6,2075.8,0.493]
[1771085796536,7.60020538,2077.2,2075.8,0.493]
[1771085796722,8.09320538,2077.2,2075.8,0.493]
[1771085797117,0.1024,2077.1,2075.7,0.001]
[1771085797510,0.1024,2077.1,2075.7,1.20539838]
[1771085797714,0.1024,2076.9,2075.7,0.001]
[1771085798313,0.1024,2076.9,2075.2,1.36]
[1771085799744,1.20377503,2076.8,2075.3,1.20464511]
[1771085800439,1.20377503,2076.8,2075.3,3.53764511]
[1771085801764,4.81510015,2077.0,2075.3,3.53764511]
[1771085803459,4.81510015,2077.1,2075.4,30.0]
[1771085803864,4.81440469,2077.3,2075.5,1.20452902]
[1771085804753,4.81440469,2077.3,2075.6,1.36]
[1771085805579,4.81440469,2077.3,2075.7,22.917]
[1771085805766,4.81440469,2077.3,2075.7,20.827]
[1771085805767,0.60647678,2077.2,2075.7,20.827]
[1771085805968,0.60647678,2077.2,2075.8,1.20435494]
[1771085805969,0.60647678,2077.0,2075.8,1.20435494]
[1771085807185,0.60647678,2077.0,2075.6,2.56446996]
[1771085807990,0.60647678,2076.8,2075.6,2.56446996]
[1771085808985,0.60647678,2076.8,2075.6,2.51446996]
[1771085809869,0.60647678,2076.8,2075.7,1.71]
[1771085810065,0.60647678,2076.7,2075.8,1.20435494]
[1771085811080,1.20371707,2076.9,2075.8,1.20435494]
[1771085811277,0.60647678,2076.8,2075.8,1.20435494]
[1771085811970,1.81026203,2076.8,2075.8,1.20435494]
[1771085812168,0.60647678,2076.8,2075.8,1.20435494]
[1771085813469,1.81025526,2076.8,2075.8,1.20435494]
[1771085813671,0.60647678,2076.7,2075.8,1.20435494]
[1771085814187,0.60647678,2076.6,2075.8,1.20435494]
[1771085814380,0.60647678,2076.6,2075.9,1.708]
[1771085816101,0.60647678,2076.9,2076.0,1.20423892]
[1771085816466,0.60647678,2076.9,2075.9,1.707]
[1771085819705,0.60647678,2076.9,2076.0,1.20423892]
[1771085819706,0.60647678,2076.7,2076.0,1.20423892]
[1771085822182,0.60647678,2076.6,2076.0,1.20423892]
[1771085824676,0.60647678,2076.9,2076.0,1.20423892]
[1771085825378,0.60757678,2077.2,2076.1,30.0]
[1771085825895,0.60757678,2077.2,2076.2,1.20412291]
[1771085826673,0.60757678,2077.2,2076.3,0.867]
[1771085826873,0.60757678,2077.2,2076.4,1.704]
[1771085828104,0.60757678,2077.2,2076.5,1.20394895]
[1771085829306,0.60757678,2077.2,2076.6,1.703]
[1771085830005,0.60757678,2077.2,2076.7,1.203833]
[1771085831307,1.70199803,2077.6,2076.7,1.203833]
[1771085831490,0.4986801,2077.6,2076.7,1.59735621]
[1771085832588,0.0011,2077.6,2076.8,0.39352321]
[1771085834410,0.0011,2077.6,2077.0,0.39352321]
[1771085834582,0.0011,2077.6,2077.1,1.702]
[1771085835299,0.0011,2077.6,2077.1,2.09552321]
[1771085835702,0.0011,2078.4,2077.4,0.39352321]
[1771085835902,1.65940727,2078.4,2077.5,0.867]
[1771085836100,0.45545731,2078.3,2077.6,1.701]
[1771085836281,0.45545731,2078.3,2077.7,1.20325359]
[1771085836715,0.0011,2078.4,2077.7,1.20325359]
[1771085837211,0.0011,2077.9,2077.7,1.20325359]
[1771085837521,0.0011,2078.4,2077.7,1.20325359]
[1771085838012,0.0011,2078.1,2077.7,1.20325359]
[1771085838691,0.0011,2078.1,2077.8,1.702]
[1771085838887,0.45655731,2078.1,2077.1,0.39352321]
[1771085839091,0.45655731,2078.1,2077.2,7.38311807]
[1771085839932,0.0011,2078.1,2077.3,0.39352321]
[1771085840718,0.0011,2078.1,2077.4,1.20342736]
[1771085841722,0.0011,2078.1,2077.5,2.568]
[1771085842225,0.45655731,2078.1,2077.6,1.702]
[1771085843096,0.45655731,2078.1,2077.7,1.20325359]
[1771085844932,0.0011,2078.1,2077.7,1.20325359]
[1771085845735,0.0011,2078.1,2077.8,1.702]
[1771085847131,0.0011,2078.1,2077.8,2.90516404]
[1771085847632,0.45545731,2078.0,2077.2,1.703]
[1771085848126,0.45545731,2078.0,2077.3,9.60503465]
[1771085849437,1.6585732,2078.0,2077.3,10.80850966]
[1771085849743,0.45545731,2077.9,2077.3,10.80850966]
[1771085849944,0.45545731,2077.9,2077.4,1.705]
[1771085851434,0.45545731,2077.7,2077.3,1.706]
[1771085852120,0.45545731,2077.7,2077.3,11.31103465]
[1771085853031,1.65857853,2078.0,2077.3,11.31103465]
[1771085853417,0.45545731,2077.9,2077.3,11.31103465]
[1771085854250,0.45545731,2077.8,2077.3,11.31103465]
[1771085854453,0.45545731,2077.8,2077.3,12.51451922]
[1771085856561,0.45545731,2077.8,2077.4,9.60503465]
[1771085857130,0.45545731,2077.7,2077.4,9.60503465]
[1771085857951,0.45545731,2077.7,2077.3,1.706]
[1771085858153,0.45545731,2077.7,2077.4,9.60503465]
[1771085859466,1.65873784,2077.7,2077.2,1.20354208]
[1771085859646,0.45545731,2077.6,2077.3,11.31803465]
[1771085859834,0.45545731,2077.6,2077.3,1.713]
[1771085860033,0.45545731,2077.6,2077.4,9.60503465]
[1771085860488,0.45545731,2077.6,2077.3,1.713]
[1771085860639,0.45545731,2077.6,2077.4,9.60503465]
[1771085862053,4.81256025,2077.9,2077.4,9.60503465]
[1771085862054,1.67033968,2077.9,2077.4,9.60503465]
[1771085862382,1.67033968,2077.9,2077.4,10.80845336]
[1771085862554,1.67033968,2077.9,2077.4,9.60503465]
[1771085863059,0.46762314,2077.8,2077.4,9.60503465]
[1771085864173,1.20325137,2077.8,2077.4,9.60503465]
[1771085864379,0.46762314,2077.7,2077.5,1.718]
[1771085865966,0.46762314,2077.7,2077.5,11.32303465]
[1771085866278,0.46762314,2077.7,2077.0,1.20462174]
[1771085866279,1.67093465,2077.6,2077.0,1.20462174]
[1771085866571,0.46762314,2077.5,2077.1,11.32503465]
[1771085867069,1.67088712,2077.7,2077.1,11.32503465]
[1771085867275,0.46762314,2077.6,2077.1,9.60503465]
[1771085867478,0.46762314,2077.6,2077.2,11.32603465]
[1771085867677,0.46762314,2077.6,2077.2,1.721]
[1771085868178,1.20336943,2077.5,2077.2,1.721]
[1771085868378,0.46762314,2077.4,2077.2,11.32603465]
[1771085868560,0.46762314,2077.4,2077.2,1.721]
[1771085868759,0.46762314,2077.4,2076.8,4.81604098]
[1771085868760,0.46762314,2077.4,2076.8,0.001]
[1771085869273,0.46762314,2077.2,2076.2,1.20408769]
[1771085869468,0.46762314,2077.2,2076.4,1.722]
[1771085869781,0.46762314,2077.1,2076.4,1.722]
[1771085870382,0.46762314,2076.9,2076.4,1.722]
[1771085872177,0.46762314,2076.9,2076.1,1.14006355]
[1771085872378,0.46762314,2076.7,2076.0,1.655]
[1771085876182,1.67151411,2076.6,2076.0,1.655]
[1771085876372,0.46762314,2076.5,2075.6,1.20447099]
[1771085878084,0.46762314,2076.5,2075.4,1.718]
[1771085878386,0.46762314,2076.3,2075.5,1.20452902]
[1771085879393,0.46762314,2076.3,2075.7,0.001]
[1771085880689,1.20412291,2076.2,2075.7,0.001]
[1771085880868,4.81602774,2076.5,2075.7,0.001]
[1771085880869,1.20394895,2076.5,2075.7,0.001]
[1771085881259,1.67157209,2076.5,2075.7,0.001]
[1771085881489,0.46762314,2076.4,2075.7,0.001]
[1771085882873,1.20406492,2076.3,2075.7,0.001]
[1771085883875,4.81584674,2076.5,2075.7,0.001]
[1771085884076,5.28346988,2076.5,2075.7,0.001]
[1771085884291,0.46762314,2076.4,2075.7,0.001]
[1771085884798,1.20392931,2076.6,2075.7,0.47489101]
[1771085884967,1.67155245,2076.6,2075.8,1.20435494]
[1771085887586,1.20392931,2076.6,2075.8,1.67824595]
[1771085888002,1.20387103,2076.7,2075.9,0.47389101]
[1771085889297,1.20387103,2076.7,2076.0,1.20423892]
[1771085891892,1.20387103,2076.7,2076.0,0.47389101]
[1771085892807,0.47664557,2076.6,2075.7,0.001]
[1771085893190,0.47664557,2076.6,2075.7,0.49811436]
[1771085893785,1.20394895,2076.5,2075.8,1.20435494]
[1771085894179,1.20394895,2076.5,2075.7,5.31566863]
[1771085894180,1.68059452,2076.5,2075.7,0.001]
[1771085894494,1.68059452,2076.5,2075.7,1.20540147]
[1771085894883,1.68059452,2076.5,2075.7,0.001]
[1771085895078,1.20394895,2076.5,2075.7,1.20541194]
[1771085895312,0.47664557,2076.4,2075.7,1.20541194]
[1771085896180,1.20406492,2076.3,2075.7,0.001]
[1771085896380,0.47664557,2076.2,2075.7,0.001]
[1771085898295,1.20418091,2076.1,2075.7,0.001]
[1771085898498,1.68082648,2076.1,2075.7,0.001]
[1771085899381,1.6806525,2076.4,2075.7,0.001]
[1771085900487,1.68036264,2076.9,2075.7,0.49811436]
[1771085900705,1.20371707,2076.9,2075.8,0.49711436]
[1771085901385,1.20371707,2076.9,2075.8,1.36411436]
[1771085901588,1.20371707,2076.9,2075.9,0.49711436]
[1771085901918,0.47664557,2076.8,2075.8,1.239]
[1771085902718,1.203833,2076.7,2075.9,1.20429693]
[1771085905818,0.47664557,2076.6,2075.7,1.20538235]
[1771085906020,1.3,2076.5,2075.7,1.20538235]
[1771085907206,2.50395495,2076.5,2075.7,0.001]
[1771085908017,2.50395495,2076.5,2075.7,0.49811436]
[1771085908520,2.98060052,2076.5,2075.7,0.001]
[1771085913728,0.47664557,2076.4,2075.7,0.001]
[1771085916412,0.47664557,2076.2,2075.7,0.001]
[1771085918307,1.20418091,2076.1,2075.7,0.001]
[1771085918532,1.68082648,2076.1,2075.7,0.001]
[1771085918737,0.47664557,2076.0,2075.7,0.001]
[1771085919231,0.47664557,2076.0,2075.1,1.2047199]
[1771085920037,0.47664557,2076.0,2074.8,1.20490851]
[1771085920216,0.47664557,2075.8,2074.8,1.70202287]
[1771085920621,0.47664557,2075.8,2074.8,0.49711436]
[1771085920835,0.47664557,2075.8,2074.6,2.89700632]
[1771085921223,0.4828079,2075.6,2074.4,0.47192629]
[1771085921543,0.4828079,2075.4,2074.3,0.1375983]
[1771085921736,0.4828079,2075.4,2074.3,1.34281809]
[1771085922333,1.20459208,2075.4,2074.4,0.47192629]
[1771085922538,5.68449134,2075.8,2074.3,1.34281809]
[1771085922539,1.68726263,2075.7,2074.6,0.47192629]
[1771085923510,0.49179208,2075.6,2074.6,0.47192629]
[1771085924045,1.69617403,2075.8,2074.6,0.47192629]
[1771085924613,1.69617403,2075.8,2074.7,1.66099273]
[1771085924946,1.69617403,2075.8,2074.7,0.45599924]
[1771085924947,0.49179208,2075.7,2074.7,0.45599924]
[1771085925117,0.45243185,2075.7,2074.7,0.45599924]
[1771085926129,1.20438195,2075.8,2074.7,0.45599924]
[1771085926332,1.97032662,2075.9,2074.7,0.45599924]
[1771085926643,2.46209085,2075.9,2074.9,0.45599924]
[1771085927230,1.97030011,2075.9,2074.9,0.45599924]
[1771085928423,0.766,2075.9,2074.9,0.45599924]
[1771085928630,1.97029963,2075.9,2075.1,0.45599924]
[1771085929157,1.97029963,2075.9,2075.0,1.20481927]
[1771085929453,2.46209171,2075.9,2075.0,1.66081851]
[1771085930350,1.35879208,2076.2,2075.1,0.45599924]
[1771085930533,1.20418091,2076.1,2075.2,1.20470316]
[1771085931052,1.20418091,2076.1,2075.2,1.6607024]
[1771085931252,1.69597299,2076.1,2075.2,1.6607024]
[1771085931443,1.20418091,2076.1,2075.2,1.6607024]
[1771085932523,4.81655304,2076.2,2075.2,1.6607024]
[1771085932724,4.81655304,2076.2,2075.3,0.45599924]
[1771085933851,1.69590038,2076.3,2075.3,0.45599924]
[1771085934052,1.645,2076.4,2075.3,0.45599924]
[1771085934450,2.84900772,2076.4,2075.3,0.45599924]
[1771085934822,2.84900772,2076.4,2075.5,0.45599924]
[1771085935029,3.3407998,2076.4,2075.5,0.45599924]
[1771085936233,2.84900772,2076.4,2075.5,0.45599924]
[1771085936437,3.3407998,2076.4,2075.5,0.45599924]
[1771085936952,2.84900772,2076.4,2075.6,1.66047023]
[1771085937855,3.3407998,2076.4,2075.6,1.20447099]
[1771085938054,1.645,2076.4,2075.6,1.66047023]
[1771085938231,2.8490154,2076.4,2075.6,1.66047023]
[1771085939667,1.3,2076.2,2075.6,1.66047023]
[1771085939866,1.3,2076.2,2075.7,0.45599924]
[1771085940870,0.38532407,2076.7,2075.7,0.45599924]
[1771085941237,0.0011,2076.7,2075.7,0.45599924]
[1771085941673,0.0011,2076.7,2075.9,0.45599924]
[1771085941848,0.0011,2076.7,2076.0,2.13899924]
[1771085942254,0.0011,2076.7,2076.1,0.45599924]
[1771085943881,0.0011,2076.7,2076.3,0.45599924]
[1771085944458,0.0011,2076.7,2076.2,1.20412291]
[1771085944655,0.0011,2076.7,2076.1,2.88615867]
[1771085944853,0.0011,2076.7,2075.6,0.45599924]
[1771085944854,0.49289208,2076.7,2075.6,0.45599924]
[1771085945089,1.79179208,2076.5,2075.5,1.683]
[1771085945782,1.3,2076.5,2075.7,0.45599924]
[1771085945952,2.50396116,2076.5,2075.7,0.45599924]
[1771085946693,2.50395426,2076.5,2075.7,0.45599924]
[1771085947080,2.50395426,2076.5,2075.6,1.20447099]
[1771085947682,1.3,2076.5,2075.6,1.20447099]
[1771085947989,1.3,2076.5,2075.6,1.66047023]
[1771085948170,2.50395036,2076.5,2075.6,1.66047023]
[1771085949091,2.50395036,2076.5,2075.7,0.45599924]
[1771085949896,2.50395285,2076.5,2075.7,0.45599924]
[1771085950191,2.50395285,2076.5,2075.8,1.20435494]
[1771085950964,2.50395285,2076.5,2075.8,1.29028454]
[1771085951700,2.50395285,2076.5,2075.8,0.0859296]
[1771085952300,2.50395285,2076.5,2075.8,1.29026934]
[1771085953407,0.49022566,2076.4,2075.8,0.0859296]
[1771085954302,1.20406492,2076.3,2075.8,0.0859296]
[1771085955183,1.3,2076.5,2075.9,0.47574371]
[1771085955479,0.0011,2076.7,2075.9,0.47574371]
[1771085956111,0.0011,2076.7,2075.9,0.56167331]
[1771085956406,0.0011,2076.7,2076.1,0.47574371]
[1771085956910,0.0011,2076.7,2076.0,1.20423892]
[1771085957211,0.49132566,2076.7,2075.9,1.29018282]
[1771085957407,0.49132566,2076.7,2075.9,0.0859296]
[1771085958482,0.49022566,2076.5,2075.9,0.0859296]
[1771085958779,0.49022566,2076.5,2075.4,1.20454686]
[1771085958980,0.49022566,2076.5,2075.3,1.81361395]
[1771085959809,1.632,2076.4,2075.0,1.20479497]
[1771085959996,1.632,2076.4,2074.9,0.001]
[1771085959997,0.49022566,2076.2,2074.9,0.001]
[1771085960403,0.49022566,2076.0,2074.9,0.001]
[1771085962230,0.49022566,2076.0,2074.9,0.47674371]